[Event "Titled Tuesday Blitz March 15 Early 2022"]
[White "Royal, Shreyas"]
[Black "Cramling Bellon, Anna"]
[WhiteFideId "448869"]
[BlackFideId "32009232"]
[WhiteElo "1986"]
[BlackElo "1905"]
[Result "1-0"]
[Round "09"]
[TimeControl "180+1"]
[Date "2022.03.15"]
[WhiteClock "0:01:24"]
[BlackClock "0:00:04"]

1. d4 {[%clk 0:02:52]}  Nf6 {[%clk 0:02:57]} 2. c4 {[%clk 0:02:52]}  e6 {[%clk 0:02:55]} 3. Nf3 {[%clk 0:02:52]}  d5 {[%clk 0:02:42]} 4. g3 {[%clk 0:02:51]}  Bb4+ {[%clk 0:02:33]} 5. Bd2 {[%clk 0:02:51]}  Bd6 {[%clk 0:02:31]} 6. Nc3 {[%clk 0:02:49]}  c6 {[%clk 0:02:22]} 7. Qc2 {[%clk 0:02:49]}  Nbd7 {[%clk 0:02:18]} 8. e4 {[%clk 0:02:47]}  dxe4 {[%clk 0:02:16]} 9. Nxe4 {[%clk 0:02:48]}  Nxe4 {[%clk 0:02:16]} 10. Qxe4 {[%clk 0:02:49]}  Nf6 {[%clk 0:02:17]} 11. Qc2 {[%clk 0:02:49]}  O-O {[%clk 0:02:12]} 12. Bg2 {[%clk 0:02:50]}  Re8 {[%clk 0:02:06]} 13. O-O {[%clk 0:02:49]}  c5 {[%clk 0:02:04]} 14. Bc3 {[%clk 0:02:45]}  Bd7 {[%clk 0:02:01]} 15. Rfd1 {[%clk 0:02:43]}  Qc7 {[%clk 0:01:48]} 16. dxc5 {[%clk 0:02:37]}  Bxc5 {[%clk 0:01:49]} 17. Bxf6 {[%clk 0:02:37]}  gxf6 {[%clk 0:01:48]} 18. Qe4 {[%clk 0:02:35]}  Bc6 {[%clk 0:01:37]} 19. Qh4 {[%clk 0:02:27]}  Qe7 {[%clk 0:01:18]} 20. Nd4 {[%clk 0:02:06]}  Bxg2 {[%clk 0:01:13]} 21. Kxg2 {[%clk 0:02:06]}  f5 {[%clk 0:01:08]} 22. Qh5 {[%clk 0:02:05]}  Qf6 {[%clk 0:01:05]} 23. Nb3 {[%clk 0:01:59]}  Bf8 {[%clk 0:00:59]} 24. Rd7 {[%clk 0:01:54]}  Re7 {[%clk 0:00:48]} 25. Rad1 {[%clk 0:01:52]}  Rae8 {[%clk 0:00:43]} 26. Nc5 {[%clk 0:01:32]}  Bg7 {[%clk 0:00:27]} 27. Rxe7 {[%clk 0:01:25]}  Qxe7 {[%clk 0:00:24]} 28. Rd7 {[%clk 0:01:24]}  Qf6 {[%clk 0:00:10]} 29. Rxb7 {[%clk 0:01:24]}  Rf8 {[%clk 0:00:02]} 30. Nd7 {[%clk 0:01:22]}  Qg6 {[%clk 0:00:02]} 31. Qxg6 {[%clk 0:01:22]}  fxg6 {[%clk 0:00:02]} 32. Nxf8 {[%clk 0:01:22]}  Bxf8 {[%clk 0:00:03]} 33. Rxa7 {[%clk 0:01:21]}  Bc5 {[%clk 0:00:02]} 34. Rc7 {[%clk 0:01:21]}  Bd6 {[%clk 0:00:03]} 35. Rb7 {[%clk 0:01:22]}  Be5 {[%clk 0:00:03]} 36. a4 {[%clk 0:01:22]}  Bd4 {[%clk 0:00:03]} 37. a5 {[%clk 0:01:22]}  e5 {[%clk 0:00:02]} 38. a6 {[%clk 0:01:23]}  e4 {[%clk 0:00:03]} 39. a7 {[%clk 0:01:23]}  Bxa7 {[%clk 0:00:04]} 40. Rxa7 {[%clk 0:01:24]}  e3 {[%clk 0:00:04]} 41. fxe3 {[%clk 0:01:24]} 1-0


[Site "https://www.chess.com"]

[Event "Titled Tuesday Blitz March 15 Early 2022"]
[White "Secer, Ata"]
[Black "Pourkashiyan, Atousa"]
[WhiteFideId "6303293"]
[BlackFideId "12502014"]
[WhiteElo "2282"]
[BlackElo "2247"]
[Result "1-0"]
[Round "09"]
[TimeControl "180+1"]
[Date "2022.03.15"]
[WhiteClock "0:00:09"]
[BlackClock "0:00:06"]

1. e4 {[%clk 0:02:59]}  e5 {[%clk 0:00:46]} 2. Nf3 {[%clk 0:02:57]}  Nf6 {[%clk 0:00:47]} 3. Nxe5 {[%clk 0:02:56]}  d6 {[%clk 0:00:47]} 4. Nf3 {[%clk 0:02:57]}  Nxe4 {[%clk 0:00:48]} 5. Nc3 {[%clk 0:02:57]}  Nxc3 {[%clk 0:00:48]} 6. dxc3 {[%clk 0:02:58]}  Be7 {[%clk 0:00:49]} 7. Bf4 {[%clk 0:02:56]}  Nd7 {[%clk 0:00:49]} 8. Qd2 {[%clk 0:02:55]}  Nc5 {[%clk 0:00:50]} 9. O-O-O {[%clk 0:02:52]}  O-O {[%clk 0:00:51]} 10. Be3 {[%clk 0:02:52]}  Ne4 {[%clk 0:00:50]} 11. Qd4 {[%clk 0:02:20]}  Bf5 {[%clk 0:00:48]} 12. g4 {[%clk 0:01:59]}  Bg6 {[%clk 0:00:47]} 13. h4 {[%clk 0:01:58]}  Bf6 {[%clk 0:00:48]} 14. Qb4 {[%clk 0:01:42]}  a5 {[%clk 0:00:39]} 15. Qxb7 {[%clk 0:01:04]}  Rb8 {[%clk 0:00:38]} 16. Qc6 {[%clk 0:01:05]}  Rxb2 {[%clk 0:00:33]} 17. Kxb2 {[%clk 0:00:36]}  Nxc3 {[%clk 0:00:32]} 18. Rd4 {[%clk 0:00:36]}  Be4 {[%clk 0:00:21]} 19. Rxe4 {[%clk 0:00:22]}  Nxe4+ {[%clk 0:00:19]} 20. Kc1 {[%clk 0:00:22]}  Nc3 {[%clk 0:00:18]} 21. Bd3 {[%clk 0:00:17]}  Qb8 {[%clk 0:00:17]} 22. Kd2 {[%clk 0:00:17]}  Nxa2 {[%clk 0:00:17]} 23. Qc4 {[%clk 0:00:15]}  d5 {[%clk 0:00:16]} 24. Qxa2 {[%clk 0:00:14]}  Qb4+ {[%clk 0:00:16]} 25. Ke2 {[%clk 0:00:14]}  c5 {[%clk 0:00:17]} 26. Rb1 {[%clk 0:00:13]}  Qc3 {[%clk 0:00:17]} 27. Qb3 {[%clk 0:00:12]}  Qxb3 {[%clk 0:00:16]} 28. cxb3 {[%clk 0:00:13]}  d4 {[%clk 0:00:14]} 29. Bf4 {[%clk 0:00:13]}  Re8+ {[%clk 0:00:14]} 30. Kd2 {[%clk 0:00:14]}  h6 {[%clk 0:00:14]} 31. g5 {[%clk 0:00:13]}  hxg5 {[%clk 0:00:14]} 32. hxg5 {[%clk 0:00:14]}  Bd8 {[%clk 0:00:13]} 33. Re1 {[%clk 0:00:14]}  Rf8 {[%clk 0:00:13]} 34. Bc4 {[%clk 0:00:14]}  Kh7 {[%clk 0:00:13]} 35. Kd3 {[%clk 0:00:13]}  Kg6 {[%clk 0:00:13]} 36. Re5 {[%clk 0:00:13]}  Bc7 {[%clk 0:00:12]} 37. Re4 {[%clk 0:00:13]}  f5 {[%clk 0:00:12]} 38. gxf6 {[%clk 0:00:12]}  Bxf4 {[%clk 0:00:11]} 39. Rxf4 {[%clk 0:00:12]}  gxf6 {[%clk 0:00:11]} 40. Ne5+ {[%clk 0:00:10]}  Kg5 {[%clk 0:00:11]} 41. Rf3 {[%clk 0:00:10]}  Rb8 {[%clk 0:00:09]} 42. Nd7 {[%clk 0:00:09]}  Rb7 {[%clk 0:00:09]} 43. Nxc5 {[%clk 0:00:09]}  Rb4 {[%clk 0:00:09]} 44. Ne6+ {[%clk 0:00:09]}  Kg6 {[%clk 0:00:09]} 45. Rg3+ {[%clk 0:00:08]}  Kf5 {[%clk 0:00:08]} 46. Nxd4+ {[%clk 0:00:09]}  Kf4 {[%clk 0:00:08]} 47. Nc6 {[%clk 0:00:08]}  Rb6 {[%clk 0:00:07]} 48. Nxa5 {[%clk 0:00:08]}  Rd6+ {[%clk 0:00:07]} 49. Kc3 {[%clk 0:00:08]}  Rd8 {[%clk 0:00:07]} 50. Rd3 {[%clk 0:00:07]}  Rh8 {[%clk 0:00:07]} 51. Nc6 {[%clk 0:00:07]}  Rh1 {[%clk 0:00:06]} 52. f3 {[%clk 0:00:07]}  Rc1+ {[%clk 0:00:06]} 53. Kb4 {[%clk 0:00:08]}  Rf1 {[%clk 0:00:05]} 54. Nd4 {[%clk 0:00:08]}  Ra1 {[%clk 0:00:05]} 55. Ne6+ {[%clk 0:00:08]}  Ke5 {[%clk 0:00:05]} 56. Re3+ {[%clk 0:00:08]}  Kd6 {[%clk 0:00:04]} 57. Kc3 {[%clk 0:00:08]}  Rd1 {[%clk 0:00:03]} 58. Rd3+ {[%clk 0:00:06]}  Rxd3+ {[%clk 0:00:03]} 59. Kxd3 {[%clk 0:00:07]}  Ke5 {[%clk 0:00:03]} 60. Ke3 {[%clk 0:00:08]}  f5 {[%clk 0:00:03]} 61. f4+ {[%clk 0:00:08]}  Kd6 {[%clk 0:00:04]} 62. Ng5 {[%clk 0:00:08]}  Kc5 {[%clk 0:00:04]} 63. Nf3 {[%clk 0:00:08]}  Kb4 {[%clk 0:00:05]} 64. Nd4 {[%clk 0:00:08]}  Kc3 {[%clk 0:00:06]} 65. Nxf5 {[%clk 0:00:09]} 1-0


[Site "https://www.chess.com"]

[Event "Titled Tuesday Blitz March 15 Early 2022"]
[White "Shuvalova, Polina"]
[Black "Shkapenko, Pavel"]
[WhiteFideId "24171760"]
[BlackFideId "4151933"]
[WhiteElo "2355"]
[BlackElo "2386"]
[Result "1-0"]
[Round "09"]
[TimeControl "180+1"]
[Date "2022.03.15"]
[WhiteClock "0:00:09"]
[BlackClock "0:00:16"]

1. d4 {[%clk 0:03:00]}  Nf6 {[%clk 0:02:56]} 2. Nf3 {[%clk 0:03:00]}  e6 {[%clk 0:02:52]} 3. Bf4 {[%clk 0:02:59]}  c5 {[%clk 0:02:52]} 4. e3 {[%clk 0:02:58]}  cxd4 {[%clk 0:02:52]} 5. exd4 {[%clk 0:02:57]}  b6 {[%clk 0:02:52]} 6. c3 {[%clk 0:02:57]}  Bb7 {[%clk 0:02:53]} 7. Nbd2 {[%clk 0:02:57]}  d6 {[%clk 0:02:52]} 8. Bd3 {[%clk 0:02:57]}  a6 {[%clk 0:02:52]} 9. a4 {[%clk 0:02:56]}  Be7 {[%clk 0:02:53]} 10. O-O {[%clk 0:02:56]}  O-O {[%clk 0:02:53]} 11. Qe2 {[%clk 0:02:56]}  Nbd7 {[%clk 0:02:52]} 12. Rfe1 {[%clk 0:02:55]}  Re8 {[%clk 0:02:52]} 13. h3 {[%clk 0:02:54]}  Bf8 {[%clk 0:02:53]} 14. Bh2 {[%clk 0:02:54]}  e5 {[%clk 0:02:53]} 15. dxe5 {[%clk 0:02:41]}  dxe5 {[%clk 0:02:51]} 16. Rad1 {[%clk 0:02:29]}  e4 {[%clk 0:02:36]} 17. Nxe4 {[%clk 0:01:40]}  Nxe4 {[%clk 0:02:10]} 18. Bxe4 {[%clk 0:01:13]}  Bxe4 {[%clk 0:01:53]} 19. Ne5 {[%clk 0:01:04]}  Bf5 {[%clk 0:01:31]} 20. Qf3 {[%clk 0:00:42]}  Nxe5 {[%clk 0:01:08]} 21. Qxf5 {[%clk 0:00:22]}  Qc8 {[%clk 0:00:50]} 22. Qxc8 {[%clk 0:00:20]}  Raxc8 {[%clk 0:00:50]} 23. Rxe5 {[%clk 0:00:19]}  Red8 {[%clk 0:00:48]} 24. Red5 {[%clk 0:00:19]}  Re8 {[%clk 0:00:47]} 25. Kf1 {[%clk 0:00:18]}  Re6 {[%clk 0:00:46]} 26. Bf4 {[%clk 0:00:17]}  h6 {[%clk 0:00:46]} 27. g3 {[%clk 0:00:17]}  Rce8 {[%clk 0:00:46]} 28. Be3 {[%clk 0:00:18]}  Kh7 {[%clk 0:00:41]} 29. R1d3 {[%clk 0:00:18]}  Kg6 {[%clk 0:00:40]} 30. Kg2 {[%clk 0:00:18]}  f6 {[%clk 0:00:38]} 31. g4 {[%clk 0:00:18]}  Rb8 {[%clk 0:00:38]} 32. h4 {[%clk 0:00:18]}  Be7 {[%clk 0:00:35]} 33. h5+ {[%clk 0:00:19]}  Kf7 {[%clk 0:00:35]} 34. Rd7 {[%clk 0:00:19]}  b5 {[%clk 0:00:35]} 35. a5 {[%clk 0:00:17]}  b4 {[%clk 0:00:35]} 36. Bc5 {[%clk 0:00:16]}  bxc3 {[%clk 0:00:32]} 37. bxc3 {[%clk 0:00:14]}  Ke8 {[%clk 0:00:32]} 38. Bxe7 {[%clk 0:00:08]}  Rxe7 {[%clk 0:00:33]} 39. R7d6 {[%clk 0:00:06]}  Ra8 {[%clk 0:00:31]} 40. Re3 {[%clk 0:00:05]}  Ra7 {[%clk 0:00:30]} 41. Rxe7+ {[%clk 0:00:04]}  Kxe7 {[%clk 0:00:30]} 42. Rc6 {[%clk 0:00:04]}  Kd7 {[%clk 0:00:30]} 43. Rb6 {[%clk 0:00:05]}  Ke8 {[%clk 0:00:29]} 44. f3 {[%clk 0:00:05]}  Rc7 {[%clk 0:00:29]} 45. Rxa6 {[%clk 0:00:05]}  Rxc3 {[%clk 0:00:29]} 46. Ra7 {[%clk 0:00:05]}  Ra3 {[%clk 0:00:29]} 47. Rxg7 {[%clk 0:00:04]}  Rxa5 {[%clk 0:00:28]} 48. Rg6 {[%clk 0:00:04]}  Kf7 {[%clk 0:00:28]} 49. Kg3 {[%clk 0:00:04]}  Ra8 {[%clk 0:00:28]} 50. Rxh6 {[%clk 0:00:05]}  Kg7 {[%clk 0:00:28]} 51. Rg6+ {[%clk 0:00:05]}  Kf7 {[%clk 0:00:28]} 52. Kf4 {[%clk 0:00:05]}  Ra4+ {[%clk 0:00:28]} 53. Kg3 {[%clk 0:00:06]}  Ra1 {[%clk 0:00:28]} 54. Kf4 {[%clk 0:00:06]}  Ra4+ {[%clk 0:00:28]} 55. Ke3 {[%clk 0:00:07]}  Ra3+ {[%clk 0:00:28]} 56. Ke4 {[%clk 0:00:07]}  Ra4+ {[%clk 0:00:29]} 57. Ke3 {[%clk 0:00:07]}  Ra3+ {[%clk 0:00:29]} 58. Kf2 {[%clk 0:00:08]}  Ra4 {[%clk 0:00:25]} 59. Rh6 {[%clk 0:00:06]}  Kg7 {[%clk 0:00:25]} 60. Rg6+ {[%clk 0:00:06]}  Kf7 {[%clk 0:00:26]} 61. Kg2 {[%clk 0:00:05]}  Ra2+ {[%clk 0:00:26]} 62. Kh3 {[%clk 0:00:05]}  Ra3 {[%clk 0:00:26]} 63. Kg3 {[%clk 0:00:05]}  Rb3 {[%clk 0:00:26]} 64. g5 {[%clk 0:00:04]}  fxg5 {[%clk 0:00:26]} 65. Rxg5 {[%clk 0:00:05]}  Kf6 {[%clk 0:00:25]} 66. Kg4 {[%clk 0:00:06]}  Rb4+ {[%clk 0:00:25]} 67. f4 {[%clk 0:00:06]}  Rb1 {[%clk 0:00:26]} 68. Rg6+ {[%clk 0:00:07]}  Kf7 {[%clk 0:00:26]} 69. Ra6 {[%clk 0:00:08]}  Kg7 {[%clk 0:00:26]} 70. h6+ {[%clk 0:00:07]}  Kh7 {[%clk 0:00:26]} 71. Kg5 {[%clk 0:00:08]}  Rg1+ {[%clk 0:00:24]} 72. Kf5 {[%clk 0:00:08]}  Rb1 {[%clk 0:00:25]} 73. Kf6 {[%clk 0:00:08]}  Kxh6 {[%clk 0:00:24]} 74. f5 {[%clk 0:00:08]}  Rb7 {[%clk 0:00:21]} 75. Re6 {[%clk 0:00:09]}  Kh5 {[%clk 0:00:20]} 76. Re7 {[%clk 0:00:08]}  Rb6+ {[%clk 0:00:18]} 77. Re6 {[%clk 0:00:09]}  Rb7 {[%clk 0:00:18]} 78. Rd6 {[%clk 0:00:09]}  Kg4 {[%clk 0:00:18]} 79. Kg6 {[%clk 0:00:09]}  Rb5 {[%clk 0:00:16]} 80. Rd4+ {[%clk 0:00:09]}  Kf3 {[%clk 0:00:15]} 81. f6 {[%clk 0:00:10]}  Ke3 {[%clk 0:00:15]} 82. Ra4 {[%clk 0:00:10]}  Rb6 {[%clk 0:00:15]} 83. Kg7 {[%clk 0:00:10]}  Kd3 {[%clk 0:00:15]} 84. f7 {[%clk 0:00:10]}  Rb7 {[%clk 0:00:16]} 85. Kg8 {[%clk 0:00:09]} 1-0


[Site "https://www.chess.com"]

[Event "Titled Tuesday Blitz March 15 Early 2022"]
[White "Tasev, Dejan"]
[Black "Foisor, Sabina-Francesca"]
[WhiteFideId "936618"]
[BlackFideId "1212915"]
[WhiteElo "2253"]
[BlackElo "2243"]
[Result "1-0"]
[Round "09"]
[TimeControl "180+1"]
[Date "2022.03.15"]
[WhiteClock "0:00:51"]
[BlackClock "0:00:30"]

1. e4 {[%clk 0:02:59]}  c6 {[%clk 0:02:59]} 2. d4 {[%clk 0:02:59]}  g6 {[%clk 0:03:00]} 3. Nc3 {[%clk 0:03:00]}  d5 {[%clk 0:03:00]} 4. Nf3 {[%clk 0:03:00]}  Bg7 {[%clk 0:03:00]} 5. Be3 {[%clk 0:02:56]}  dxe4 {[%clk 0:03:00]} 6. Nxe4 {[%clk 0:02:56]}  Nf6 {[%clk 0:03:01]} 7. Nxf6+ {[%clk 0:02:56]}  exf6 {[%clk 0:03:01]} 8. Bc4 {[%clk 0:02:56]}  O-O {[%clk 0:03:00]} 9. Bb3 {[%clk 0:02:56]}  Nd7 {[%clk 0:03:00]} 10. O-O {[%clk 0:02:56]}  Nb6 {[%clk 0:03:00]} 11. h3 {[%clk 0:02:54]}  Bf5 {[%clk 0:02:50]} 12. Bf4 {[%clk 0:02:43]}  Be4 {[%clk 0:02:45]} 13. Re1 {[%clk 0:02:34]}  Bd5 {[%clk 0:02:33]} 14. c3 {[%clk 0:02:34]}  Bxb3 {[%clk 0:02:26]} 15. axb3 {[%clk 0:02:35]}  Re8 {[%clk 0:02:24]} 16. Qd3 {[%clk 0:02:26]}  Nd5 {[%clk 0:02:19]} 17. Bg3 {[%clk 0:02:23]}  Qb6 {[%clk 0:02:12]} 18. b4 {[%clk 0:02:11]}  h5 {[%clk 0:02:06]} 19. Nd2 {[%clk 0:02:08]}  f5 {[%clk 0:02:01]} 20. Nc4 {[%clk 0:02:07]}  Qd8 {[%clk 0:01:52]} 21. Be5 {[%clk 0:01:42]}  Qg5 {[%clk 0:01:47]} 22. Bxg7 {[%clk 0:01:22]}  Kxg7 {[%clk 0:01:36]} 23. Qf3 {[%clk 0:01:21]}  h4 {[%clk 0:01:16]} 24. Nd6 {[%clk 0:01:15]}  Rxe1+ {[%clk 0:01:09]} 25. Rxe1 {[%clk 0:01:14]}  b6 {[%clk 0:01:02]} 26. b5 {[%clk 0:01:08]}  Rd8 {[%clk 0:01:00]} 27. Nb7 {[%clk 0:01:07]}  Rc8 {[%clk 0:00:53]} 28. bxc6 {[%clk 0:01:06]}  Nf4 {[%clk 0:00:42]} 29. Nd6 {[%clk 0:00:59]}  Rc7 {[%clk 0:00:38]} 30. Ne8+ {[%clk 0:00:58]}  Kh7 {[%clk 0:00:34]} 31. Nxc7 {[%clk 0:00:57]}  a5 {[%clk 0:00:33]} 32. Nd5 {[%clk 0:00:54]}  Ne6 {[%clk 0:00:30]} 33. c7 {[%clk 0:00:51]} 1-0


[Site "https://www.chess.com"]

[Event "Titled Tuesday Blitz March 15 Early 2022"]
[White "Tay, Junior"]
[Black "Marson, Juan Miguel"]
[WhiteFideId "5800439"]
[BlackFideId "106585"]
[WhiteElo "2216"]
[BlackElo "2053"]
[Result "1-0"]
[Round "09"]
[TimeControl "180+1"]
[Date "2022.03.15"]
[WhiteClock "0:01:32"]
[BlackClock "0:00:04"]

1. e4 {[%clk 0:03:00]}  e5 {[%clk 0:03:00]} 2. Nc3 {[%clk 0:03:00]}  Nf6 {[%clk 0:03:00]} 3. Bc4 {[%clk 0:03:00]}  Nc6 {[%clk 0:02:58]} 4. d3 {[%clk 0:03:00]}  Be7 {[%clk 0:02:57]} 5. f4 {[%clk 0:03:00]}  d6 {[%clk 0:02:56]} 6. Nf3 {[%clk 0:03:00]}  Bg4 {[%clk 0:02:57]} 7. O-O {[%clk 0:03:01]}  Bxf3 {[%clk 0:02:50]} 8. Qxf3 {[%clk 0:02:59]}  Nd4 {[%clk 0:02:50]} 9. Qf2 {[%clk 0:02:58]}  a6 {[%clk 0:02:42]} 10. a4 {[%clk 0:02:58]}  h5 {[%clk 0:02:29]} 11. Nd5 {[%clk 0:02:52]}  Ng4 {[%clk 0:02:21]} 12. Qd2 {[%clk 0:02:52]}  c6 {[%clk 0:02:04]} 13. Nc3 {[%clk 0:02:51]}  b5 {[%clk 0:01:50]} 14. axb5 {[%clk 0:02:44]}  axb5 {[%clk 0:01:49]} 15. Rxa8 {[%clk 0:02:35]}  Qxa8 {[%clk 0:01:50]} 16. Bb3 {[%clk 0:02:18]}  Qa7 {[%clk 0:01:41]} 17. Kh1 {[%clk 0:02:17]}  O-O {[%clk 0:01:17]} 18. fxe5 {[%clk 0:02:14]}  Nxb3 {[%clk 0:01:06]} 19. cxb3 {[%clk 0:02:15]}  Nxe5 {[%clk 0:01:07]} 20. d4 {[%clk 0:02:11]}  Ng4 {[%clk 0:01:04]} 21. h3 {[%clk 0:02:08]}  Nh6 {[%clk 0:00:57]} 22. Qd1 {[%clk 0:01:59]}  b4 {[%clk 0:00:39]} 23. Ne2 {[%clk 0:01:50]}  h4 {[%clk 0:00:31]} 24. Bxh6 {[%clk 0:01:40]}  gxh6 {[%clk 0:00:32]} 25. Nf4 {[%clk 0:01:41]}  Bg5 {[%clk 0:00:30]} 26. Nh5 {[%clk 0:01:41]}  Qe7 {[%clk 0:00:23]} 27. Qf3 {[%clk 0:01:37]}  Re8 {[%clk 0:00:18]} 28. Re1 {[%clk 0:01:37]}  Kh7 {[%clk 0:00:17]} 29. Qf5+ {[%clk 0:01:36]}  Kg8 {[%clk 0:00:16]} 30. e5 {[%clk 0:01:37]}  Qe6 {[%clk 0:00:14]} 31. Qf3 {[%clk 0:01:36]}  dxe5 {[%clk 0:00:08]} 32. Rxe5 {[%clk 0:01:35]}  Qd7 {[%clk 0:00:09]} 33. Qe4 {[%clk 0:01:32]}  Rxe5 {[%clk 0:00:09]} 34. Qxe5 {[%clk 0:01:32]}  Qe7 {[%clk 0:00:04]} 35. Qg7# {[%clk 0:01:32]} 1-0


[Site "https://www.chess.com"]

[Event "Titled Tuesday Blitz March 15 Early 2022"]
[White "Thomas, Anysia"]
[Black "Omariev, Maksim"]
[WhiteFideId "670472"]
[BlackFideId "4193423"]
[WhiteElo "2002"]
[BlackElo "2455"]
[Result "0-1"]
[Round "09"]
[TimeControl "180+1"]
[Date "2022.03.15"]
[WhiteClock "0:00:04"]
[BlackClock "0:00:11"]

1. d4 {[%clk 0:01:22]}  h5 {[%clk 0:02:55]} 2. Nc3 {[%clk 0:01:19]}  h4 {[%clk 0:02:56]} 3. e4 {[%clk 0:01:19]}  c6 {[%clk 0:02:56]} 4. Be3 {[%clk 0:01:19]}  d5 {[%clk 0:02:56]} 5. exd5 {[%clk 0:01:13]}  cxd5 {[%clk 0:02:57]} 6. Bb5+ {[%clk 0:01:13]}  Nc6 {[%clk 0:02:55]} 7. Qd3 {[%clk 0:01:13]}  h3 {[%clk 0:02:54]} 8. gxh3 {[%clk 0:01:13]}  Nf6 {[%clk 0:02:53]} 9. Nf3 {[%clk 0:01:13]}  Bxh3 {[%clk 0:02:48]} 10. Ne5 {[%clk 0:01:13]}  Rc8 {[%clk 0:02:47]} 11. O-O-O {[%clk 0:01:10]}  e6 {[%clk 0:02:46]} 12. Bg5 {[%clk 0:01:08]}  Be7 {[%clk 0:02:42]} 13. Rhg1 {[%clk 0:01:07]}  Kf8 {[%clk 0:02:35]} 14. Nxc6 {[%clk 0:01:01]}  bxc6 {[%clk 0:02:35]} 15. Ba6 {[%clk 0:01:02]}  Rb8 {[%clk 0:02:31]} 16. Bf4 {[%clk 0:00:57]}  Rb6 {[%clk 0:02:23]} 17. Qg3 {[%clk 0:00:50]}  Nh5 {[%clk 0:01:29]} 18. Qxh3 {[%clk 0:00:49]}  Rxa6 {[%clk 0:01:29]} 19. Rde1 {[%clk 0:00:28]}  Kg8 {[%clk 0:01:28]} 20. Qg4 {[%clk 0:00:25]}  Rh7 {[%clk 0:01:20]} 21. Be5 {[%clk 0:00:25]}  Bf6 {[%clk 0:01:12]} 22. Re3 {[%clk 0:00:24]}  Bxe5 {[%clk 0:01:10]} 23. Rxe5 {[%clk 0:00:25]}  Nf6 {[%clk 0:01:08]} 24. Qg3 {[%clk 0:00:24]}  Qb8 {[%clk 0:00:40]} 25. Qg5 {[%clk 0:00:22]}  Nd7 {[%clk 0:00:36]} 26. Re3 {[%clk 0:00:18]}  Qxh2 {[%clk 0:00:33]} 27. Reg3 {[%clk 0:00:16]}  g6 {[%clk 0:00:29]} 28. Qd8+ {[%clk 0:00:14]}  Nf8 {[%clk 0:00:29]} 29. Qf6 {[%clk 0:00:13]}  Qh6+ {[%clk 0:00:24]} 30. Kb1 {[%clk 0:00:12]}  Qg7 {[%clk 0:00:25]} 31. Qe7 {[%clk 0:00:10]}  Qxd4 {[%clk 0:00:23]} 32. Ne2 {[%clk 0:00:09]}  Qxf2 {[%clk 0:00:18]} 33. Nc3 {[%clk 0:00:05]}  Rb6 {[%clk 0:00:18]} 34. Qa3 {[%clk 0:00:05]}  Rh2 {[%clk 0:00:16]} 35. Ka1 {[%clk 0:00:02]}  Qxc2 {[%clk 0:00:13]} 36. Rb1 {[%clk 0:00:02]}  Kg7 {[%clk 0:00:09]} 37. Rgg1 {[%clk 0:00:02]}  Rd2 {[%clk 0:00:09]} 38. Rgc1 {[%clk 0:00:02]}  Qd3 {[%clk 0:00:09]} 39. Na4 {[%clk 0:00:03]}  Qxa3 {[%clk 0:00:09]} 40. bxa3 {[%clk 0:00:03]}  Rxb1+ {[%clk 0:00:10]} 41. Rxb1 {[%clk 0:00:04]}  d4 {[%clk 0:00:10]} 42. Nc5 {[%clk 0:00:05]}  e5 {[%clk 0:00:10]} 43. Ne4 {[%clk 0:00:05]}  Re2 {[%clk 0:00:10]} 44. Nc5 {[%clk 0:00:05]}  Ne6 {[%clk 0:00:10]} 45. Nd7 {[%clk 0:00:04]}  d3 {[%clk 0:00:10]} 46. Rd1 {[%clk 0:00:04]}  e4 {[%clk 0:00:10]} 47. Ne5 {[%clk 0:00:04]}  f5 {[%clk 0:00:10]} 48. Kb1 {[%clk 0:00:03]}  c5 {[%clk 0:00:10]} 49. Nc4 {[%clk 0:00:03]}  Nd4 {[%clk 0:00:10]} 50. a4 {[%clk 0:00:03]}  f4 {[%clk 0:00:10]} 51. a5 {[%clk 0:00:03]}  f3 {[%clk 0:00:10]} 52. a6 {[%clk 0:00:03]}  f2 {[%clk 0:00:10]} 53. Nd2 {[%clk 0:00:04]}  Rxd2 {[%clk 0:00:10]} 54. Rxd2 {[%clk 0:00:04]}  f1=Q+ {[%clk 0:00:11]} 55. Kb2 {[%clk 0:00:04]}  Qe1 {[%clk 0:00:11]} 0-1


[Site "https://www.chess.com"]

[Event "Titled Tuesday Blitz March 15 Early 2022"]
[White "Tsatsalashvili, Keti"]
[Black "Weishaeutel, Moritz"]
[WhiteFideId "13603434"]
[BlackFideId "12967300"]
[WhiteElo "2246"]
[BlackElo "2002"]
[Result "0-1"]
[Round "09"]
[TimeControl "180+1"]
[Date "2022.03.15"]
[WhiteClock "0:00:03"]
[BlackClock "0:00:48"]

1. d4 {[%clk 0:03:00]}  Nf6 {[%clk 0:02:58]} 2. Nf3 {[%clk 0:03:00]}  d5 {[%clk 0:02:56]} 3. c4 {[%clk 0:03:00]}  e6 {[%clk 0:02:56]} 4. Nc3 {[%clk 0:02:59]}  Be7 {[%clk 0:02:57]} 5. Bg5 {[%clk 0:02:59]}  O-O {[%clk 0:02:57]} 6. e3 {[%clk 0:02:59]}  Nbd7 {[%clk 0:02:52]} 7. Rc1 {[%clk 0:02:56]}  dxc4 {[%clk 0:02:47]} 8. Bxc4 {[%clk 0:02:54]}  a6 {[%clk 0:02:47]} 9. a4 {[%clk 0:02:49]}  b6 {[%clk 0:02:48]} 10. O-O {[%clk 0:02:48]}  Bb7 {[%clk 0:02:48]} 11. Qe2 {[%clk 0:02:46]}  c5 {[%clk 0:02:42]} 12. Rfd1 {[%clk 0:02:44]}  Nd5 {[%clk 0:02:37]} 13. Bxe7 {[%clk 0:02:08]}  Qxe7 {[%clk 0:02:38]} 14. e4 {[%clk 0:01:52]}  Nxc3 {[%clk 0:02:31]} 15. bxc3 {[%clk 0:01:53]}  Nf6 {[%clk 0:02:22]} 16. Bd3 {[%clk 0:01:49]}  Rfd8 {[%clk 0:02:12]} 17. h4 {[%clk 0:01:48]}  Rac8 {[%clk 0:02:04]} 18. e5 {[%clk 0:01:46]}  Nd5 {[%clk 0:01:34]} 19. Bxh7+ {[%clk 0:01:18]}  Kxh7 {[%clk 0:01:35]} 20. Ng5+ {[%clk 0:01:17]}  Kg8 {[%clk 0:01:35]} 21. Qh5 {[%clk 0:01:13]}  Qd7 {[%clk 0:01:36]} 22. Qh7+ {[%clk 0:01:07]}  Kf8 {[%clk 0:01:36]} 23. Qh8+ {[%clk 0:01:07]}  Ke7 {[%clk 0:01:36]} 24. Qxg7 {[%clk 0:01:08]}  Rf8 {[%clk 0:01:36]} 25. dxc5 {[%clk 0:00:57]}  Qe8 {[%clk 0:01:23]} 26. c4 {[%clk 0:00:54]}  Rg8 {[%clk 0:01:22]} 27. Qh7 {[%clk 0:00:22]}  Nf4 {[%clk 0:01:17]} 28. Rd2 {[%clk 0:00:17]}  Rh8 {[%clk 0:01:09]} 29. Qg7 {[%clk 0:00:17]}  Nh5 {[%clk 0:01:07]} 30. Qxf7+ {[%clk 0:00:05]}  Qxf7 {[%clk 0:01:08]} 31. Nxf7 {[%clk 0:00:06]}  Rhg8 {[%clk 0:01:05]} 32. f3 {[%clk 0:00:05]}  Rxc5 {[%clk 0:00:59]} 33. Nd6 {[%clk 0:00:06]}  Bxf3 {[%clk 0:00:59]} 34. Rf2 {[%clk 0:00:04]}  Rxe5 {[%clk 0:00:53]} 35. Rxf3 {[%clk 0:00:04]}  Kxd6 {[%clk 0:00:53]} 36. Rd1+ {[%clk 0:00:05]}  Ke7 {[%clk 0:00:52]} 37. Rfd3 {[%clk 0:00:03]}  Nf4 {[%clk 0:00:48]} 38. Rd7+ {[%clk 0:00:03]}  Kf6 {[%clk 0:00:48]} 39. Rf1 {[%clk 0:00:03]}  Rf5 {[%clk 0:00:48]} 0-1


[Site "https://www.chess.com"]